[Event "Titled Tuesday Blitz May 17 Late 2022"]
[White "Steinberg, Nitzan"]
[Black "Zakhartsov, Vladimir"]
[WhiteFideId "2801795"]
[BlackFideId "4145097"]
[WhiteElo "2471"]
[BlackElo "2428"]
[Result "0-1"]
[Round "04"]
[TimeControl "180+1"]
[Date "2022.05.17"]
[WhiteClock "0:00:05"]
[BlackClock "0:00:14"]

1. e4 {[%clk 0:03:00]}  c6 {[%clk 0:02:57]} 2. Nf3 {[%clk 0:03:00]}  d5 {[%clk 0:02:57]} 3. Nc3 {[%clk 0:03:01]}  dxe4 {[%clk 0:02:51]} 4. Nxe4 {[%clk 0:03:02]}  Nf6 {[%clk 0:02:52]} 5. Qe2 {[%clk 0:03:02]}  Nxe4 {[%clk 0:02:50]} 6. Qxe4 {[%clk 0:03:02]}  Nd7 {[%clk 0:02:51]} 7. Bc4 {[%clk 0:03:01]}  Nf6 {[%clk 0:02:51]} 8. Ne5 {[%clk 0:03:02]}  e6 {[%clk 0:02:47]} 9. Qe2 {[%clk 0:03:02]}  Bd6 {[%clk 0:02:43]} 10. d4 {[%clk 0:02:58]}  O-O {[%clk 0:02:41]} 11. O-O {[%clk 0:02:58]}  c5 {[%clk 0:02:38]} 12. dxc5 {[%clk 0:02:53]}  Bxc5 {[%clk 0:02:39]} 13. Bg5 {[%clk 0:02:48]}  Be7 {[%clk 0:02:38]} 14. Rad1 {[%clk 0:02:44]}  Qc7 {[%clk 0:02:38]} 15. Bf4 {[%clk 0:02:34]}  Qa5 {[%clk 0:02:34]} 16. Bb3 {[%clk 0:02:28]}  Qc5 {[%clk 0:02:20]} 17. Qf3 {[%clk 0:02:18]}  Rd8 {[%clk 0:02:00]} 18. Rxd8+ {[%clk 0:02:16]}  Bxd8 {[%clk 0:02:01]} 19. Rd1 {[%clk 0:02:16]}  Bc7 {[%clk 0:01:59]} 20. Nd3 {[%clk 0:01:59]}  Qe7 {[%clk 0:01:58]} 21. Bxc7 {[%clk 0:01:57]}  Qxc7 {[%clk 0:01:59]} 22. Ne5 {[%clk 0:01:49]}  Bd7 {[%clk 0:01:47]} 23. Qe3 {[%clk 0:01:30]}  Be8 {[%clk 0:01:27]} 24. h3 {[%clk 0:01:24]}  b6 {[%clk 0:01:25]} 25. Qd4 {[%clk 0:01:19]}  h6 {[%clk 0:01:21]} 26. c3 {[%clk 0:01:13]}  Rc8 {[%clk 0:01:21]} 27. Bc4 {[%clk 0:01:08]}  Bc6 {[%clk 0:01:14]} 28. Nxc6 {[%clk 0:00:41]}  Qxc6 {[%clk 0:01:14]} 29. Bd3 {[%clk 0:00:38]}  Qc7 {[%clk 0:01:05]} 30. Ba6 {[%clk 0:00:35]}  Re8 {[%clk 0:01:01]} 31. a4 {[%clk 0:00:34]}  h5 {[%clk 0:00:48]} 32. Bb5 {[%clk 0:00:26]}  Rc8 {[%clk 0:00:47]} 33. h4 {[%clk 0:00:16]}  Ng4 {[%clk 0:00:41]} 34. g3 {[%clk 0:00:16]}  Ne5 {[%clk 0:00:35]} 35. Be2 {[%clk 0:00:12]}  g6 {[%clk 0:00:34]} 36. f4 {[%clk 0:00:11]}  Nc6 {[%clk 0:00:32]} 37. Qd7 {[%clk 0:00:11]}  Ne7 {[%clk 0:00:30]} 38. Qxc7 {[%clk 0:00:04]}  Rxc7 {[%clk 0:00:31]} 39. Kf2 {[%clk 0:00:04]}  Nf5 {[%clk 0:00:29]} 40. Rd8+ {[%clk 0:00:04]}  Kg7 {[%clk 0:00:29]} 41. Bd3 {[%clk 0:00:04]}  Ne7 {[%clk 0:00:27]} 42. Ke3 {[%clk 0:00:03]}  Kf6 {[%clk 0:00:26]} 43. Be4 {[%clk 0:00:03]}  Nf5+ {[%clk 0:00:23]} 44. Bxf5 {[%clk 0:00:03]}  Kxf5 {[%clk 0:00:23]} 45. Rd4 {[%clk 0:00:03]}  Kg4 {[%clk 0:00:23]} 46. Kf2 {[%clk 0:00:03]}  Re7 {[%clk 0:00:17]} 47. b3 {[%clk 0:00:02]}  Rc7 {[%clk 0:00:17]} 48. c4 {[%clk 0:00:02]}  f6 {[%clk 0:00:15]} 49. b4 {[%clk 0:00:03]}  a5 {[%clk 0:00:14]} 50. bxa5 {[%clk 0:00:02]}  bxa5 {[%clk 0:00:15]} 51. Re4 {[%clk 0:00:03]}  Rc6 {[%clk 0:00:15]} 52. Rd4 {[%clk 0:00:03]}  f5 {[%clk 0:00:13]} 53. Kg2 {[%clk 0:00:03]}  Rb6 {[%clk 0:00:13]} 54. c5 {[%clk 0:00:02]}  Rb2+ {[%clk 0:00:14]} 55. Kf1 {[%clk 0:00:03]}  Rc2 {[%clk 0:00:14]} 56. Rd6 {[%clk 0:00:02]}  Kf3 {[%clk 0:00:11]} 57. Rxe6 {[%clk 0:00:01]}  Rc1+ {[%clk 0:00:12]} 58. Re1 {[%clk 0:00:02]}  Rxc5 {[%clk 0:00:12]} 59. Ra1 {[%clk 0:00:02]}  Kxg3 {[%clk 0:00:12]} 60. Ke2 {[%clk 0:00:03]}  Kxf4 {[%clk 0:00:12]} 61. Kd3 {[%clk 0:00:04]}  Kg4 {[%clk 0:00:12]} 62. Kd4 {[%clk 0:00:04]}  Rc6 {[%clk 0:00:12]} 63. Kd5 {[%clk 0:00:04]}  Ra6 {[%clk 0:00:12]} 64. Kc5 {[%clk 0:00:04]}  Kxh4 {[%clk 0:00:13]} 65. Kb5 {[%clk 0:00:05]}  Ra8 {[%clk 0:00:13]} 66. Rd1 {[%clk 0:00:04]}  f4 {[%clk 0:00:13]} 67. Kb6 {[%clk 0:00:05]}  f3 {[%clk 0:00:14]} 68. Kb7 {[%clk 0:00:05]}  Rf8 {[%clk 0:00:14]} 0-1


[Site "https://www.chess.com"]

[Event "Titled Tuesday Blitz May 17 Late 2022"]
[White "Tologon tegin, Semetei"]
[Black "Jobava, Baadur"]
[WhiteFideId "13800574"]
[BlackFideId "13601520"]
[WhiteElo "2258"]
[BlackElo "2617"]
[Result "0-1"]
[Round "04"]
[TimeControl "180+1"]
[Date "2022.05.17"]
[WhiteClock "0:00:06"]
[BlackClock "0:00:57"]

1. e4 {[%clk 0:02:58]}  c6 {[%clk 0:03:00]} 2. d4 {[%clk 0:02:55]}  d5 {[%clk 0:03:01]} 3. e5 {[%clk 0:02:53]}  Bf5 {[%clk 0:03:00]} 4. Nf3 {[%clk 0:02:52]}  e6 {[%clk 0:03:00]} 5. Be2 {[%clk 0:02:49]}  h6 {[%clk 0:03:00]} 6. O-O {[%clk 0:02:49]}  Ne7 {[%clk 0:03:00]} 7. Nbd2 {[%clk 0:02:49]}  Bh7 {[%clk 0:03:00]} 8. Nb3 {[%clk 0:02:49]}  Ng6 {[%clk 0:03:01]} 9. Be3 {[%clk 0:02:48]}  Be7 {[%clk 0:03:02]} 10. c4 {[%clk 0:02:47]}  O-O {[%clk 0:03:01]} 11. Rc1 {[%clk 0:02:46]}  Re8 {[%clk 0:03:00]} 12. Qd2 {[%clk 0:02:46]}  Bf8 {[%clk 0:02:59]} 13. g3 {[%clk 0:02:39]}  Ne7 {[%clk 0:02:58]} 14. Bf4 {[%clk 0:02:21]}  Nd7 {[%clk 0:02:57]} 15. Rfd1 {[%clk 0:02:19]}  dxc4 {[%clk 0:02:54]} 16. Bxc4 {[%clk 0:02:19]}  Nb6 {[%clk 0:02:50]} 17. Bf1 {[%clk 0:02:16]}  Ned5 {[%clk 0:02:49]} 18. a3 {[%clk 0:02:11]}  Nxf4 {[%clk 0:02:48]} 19. Qxf4 {[%clk 0:02:11]}  Nd5 {[%clk 0:02:48]} 20. Qd2 {[%clk 0:01:56]}  Qb6 {[%clk 0:02:49]} 21. Nc5 {[%clk 0:01:55]}  Red8 {[%clk 0:02:49]} 22. Bd3 {[%clk 0:01:53]}  Bxd3 {[%clk 0:02:48]} 23. Nxd3 {[%clk 0:01:52]}  a5 {[%clk 0:02:48]} 24. h4 {[%clk 0:01:47]}  a4 {[%clk 0:02:47]} 25. h5 {[%clk 0:01:47]}  Ra5 {[%clk 0:02:47]} 26. g4 {[%clk 0:01:41]}  Rb5 {[%clk 0:02:46]} 27. Kh2 {[%clk 0:01:41]}  Rb3 {[%clk 0:02:45]} 28. g5 {[%clk 0:01:28]}  hxg5 {[%clk 0:02:43]} 29. Qxg5 {[%clk 0:01:23]}  Ne7 {[%clk 0:02:31]} 30. h6 {[%clk 0:01:16]}  Nf5 {[%clk 0:02:29]} 31. hxg7 {[%clk 0:01:16]}  Bxg7 {[%clk 0:02:28]} 32. Rc3 {[%clk 0:01:11]}  Rxb2 {[%clk 0:02:12]} 33. Nxb2 {[%clk 0:01:08]}  Qxb2 {[%clk 0:02:12]} 34. Qd2 {[%clk 0:01:08]}  Qxd2 {[%clk 0:02:08]} 35. Rxd2 {[%clk 0:01:08]}  Bf8 {[%clk 0:02:09]} 36. Rc4 {[%clk 0:01:02]}  Ra8 {[%clk 0:02:06]} 37. Rd3 {[%clk 0:01:00]}  Ne7 {[%clk 0:01:59]} 38. Ng5 {[%clk 0:00:58]}  Nd5 {[%clk 0:01:58]} 39. Ne4 {[%clk 0:00:58]}  Be7 {[%clk 0:01:57]} 40. Rg3+ {[%clk 0:00:57]}  Kf8 {[%clk 0:01:56]} 41. Nc5 {[%clk 0:00:53]}  b5 {[%clk 0:01:53]} 42. Rc1 {[%clk 0:00:51]}  Bxc5 {[%clk 0:01:50]} 43. Rxc5 {[%clk 0:00:50]}  Ne7 {[%clk 0:01:51]} 44. Kg2 {[%clk 0:00:48]}  Rd8 {[%clk 0:01:50]} 45. Rg4 {[%clk 0:00:48]}  Ke8 {[%clk 0:01:50]} 46. Rc1 {[%clk 0:00:39]}  Rd5 {[%clk 0:01:49]} 47. Rh1 {[%clk 0:00:36]}  Nf5 {[%clk 0:01:49]} 48. Rh8+ {[%clk 0:00:34]}  Ke7 {[%clk 0:01:45]} 49. Rc8 {[%clk 0:00:31]}  Nxd4 {[%clk 0:01:39]} 50. Rc7+ {[%clk 0:00:31]}  Kf8 {[%clk 0:01:35]} 51. Rf4 {[%clk 0:00:31]}  Nf5 {[%clk 0:01:33]} 52. Rxc6 {[%clk 0:00:30]}  Rxe5 {[%clk 0:01:33]} 53. Rb6 {[%clk 0:00:29]}  Ke7 {[%clk 0:01:33]} 54. Rb7+ {[%clk 0:00:29]}  Kf6 {[%clk 0:01:32]} 55. Rb4 {[%clk 0:00:30]}  Nd6 {[%clk 0:01:32]} 56. Rb6 {[%clk 0:00:29]}  Rd5 {[%clk 0:01:32]} 57. Rf4+ {[%clk 0:00:28]}  Ke5 {[%clk 0:01:31]} 58. Rf3 {[%clk 0:00:29]}  Nc4 {[%clk 0:01:28]} 59. Rb7 {[%clk 0:00:27]}  f5 {[%clk 0:01:27]} 60. Rc3 {[%clk 0:00:26]}  Kd4 {[%clk 0:01:26]} 61. Rh3 {[%clk 0:00:25]}  e5 {[%clk 0:01:25]} 62. Rf7 {[%clk 0:00:25]}  e4 {[%clk 0:01:25]} 63. Kf1 {[%clk 0:00:24]}  Nd2+ {[%clk 0:01:15]} 64. Ke2 {[%clk 0:00:24]}  Nf3 {[%clk 0:01:16]} 65. Rc7 {[%clk 0:00:23]}  Ke5 {[%clk 0:01:15]} 66. Rh5 {[%clk 0:00:15]}  Rd2+ {[%clk 0:01:13]} 67. Ke3 {[%clk 0:00:15]}  Rd3+ {[%clk 0:01:13]} 68. Ke2 {[%clk 0:00:16]}  Kf4 {[%clk 0:01:12]} 69. Rc5 {[%clk 0:00:15]}  Rd2+ {[%clk 0:01:11]} 70. Kf1 {[%clk 0:00:15]}  Rd1+ {[%clk 0:01:11]} 71. Kg2 {[%clk 0:00:13]}  Rg1+ {[%clk 0:01:11]} 72. Kh3 {[%clk 0:00:13]}  Rh1+ {[%clk 0:01:11]} 73. Kg2 {[%clk 0:00:14]}  Rxh5 {[%clk 0:01:11]} 74. Rxb5 {[%clk 0:00:14]}  Rh2+ {[%clk 0:01:10]} 75. Kf1 {[%clk 0:00:14]}  Rh1+ {[%clk 0:01:10]} 76. Kg2 {[%clk 0:00:14]}  Rg1+ {[%clk 0:01:08]} 77. Kh3 {[%clk 0:00:15]}  Ra1 {[%clk 0:01:07]} 78. Kg2 {[%clk 0:00:07]}  Rxa3 {[%clk 0:01:05]} 79. Ra5 {[%clk 0:00:08]}  Ra1 {[%clk 0:01:02]} 80. Kh3 {[%clk 0:00:05]}  a3 {[%clk 0:00:59]} 81. Kg2 {[%clk 0:00:06]}  Kg4 {[%clk 0:00:57]} 0-1


[Site "https://www.chess.com"]

[Event "Titled Tuesday Blitz May 17 Late 2022"]
[White "Vypkhaniuk, Ihor"]
[Black "Andreikin, Dmitry"]
[WhiteFideId "14112256"]
[BlackFideId "4158814"]
[WhiteElo "2346"]
[BlackElo "2736"]
[Result "0-1"]
[Round "04"]
[TimeControl "180+1"]
[Date "2022.05.17"]
[WhiteClock "0:00:09"]
[BlackClock "0:01:24"]

1. d4 {[%clk 0:03:00]}  Nf6 {[%clk 0:02:59]} 2. c4 {[%clk 0:02:59]}  e6 {[%clk 0:03:00]} 3. g3 {[%clk 0:02:59]}  c5 {[%clk 0:02:58]} 4. Nf3 {[%clk 0:02:59]}  cxd4 {[%clk 0:02:54]} 5. Nxd4 {[%clk 0:03:00]}  d5 {[%clk 0:02:53]} 6. Bg2 {[%clk 0:03:00]}  dxc4 {[%clk 0:02:53]} 7. Qa4+ {[%clk 0:02:45]}  Nbd7 {[%clk 0:02:44]} 8. O-O {[%clk 0:02:39]}  Bc5 {[%clk 0:02:42]} 9. Qxc4 {[%clk 0:02:32]}  O-O {[%clk 0:02:42]} 10. Nb3 {[%clk 0:02:26]}  Bb6 {[%clk 0:02:41]} 11. Rd1 {[%clk 0:02:18]}  Qe7 {[%clk 0:02:35]} 12. Nc3 {[%clk 0:02:07]}  Ne5 {[%clk 0:02:35]} 13. Qf4 {[%clk 0:01:51]}  Neg4 {[%clk 0:02:35]} 14. e3 {[%clk 0:01:45]}  e5 {[%clk 0:02:35]} 15. Qc4 {[%clk 0:01:42]}  Be6 {[%clk 0:02:33]} 16. Qe2 {[%clk 0:01:42]}  e4 {[%clk 0:02:29]} 17. h3 {[%clk 0:01:23]}  Ne5 {[%clk 0:02:28]} 18. Nd4 {[%clk 0:01:16]}  Bc4 {[%clk 0:02:26]} 19. Qc2 {[%clk 0:01:09]}  Bd3 {[%clk 0:02:26]} 20. Qb3 {[%clk 0:01:08]}  Rad8 {[%clk 0:02:25]} 21. Bd2 {[%clk 0:01:01]}  h5 {[%clk 0:02:22]} 22. Na4 {[%clk 0:00:58]}  Bxd4 {[%clk 0:02:18]} 23. exd4 {[%clk 0:00:59]}  Rxd4 {[%clk 0:02:18]} 24. Be3 {[%clk 0:00:55]}  Rc4 {[%clk 0:02:08]} 25. Rac1 {[%clk 0:00:48]}  Rfc8 {[%clk 0:02:06]} 26. Rxc4 {[%clk 0:00:33]}  Rxc4 {[%clk 0:02:07]} 27. Rc1 {[%clk 0:00:28]}  Rxc1+ {[%clk 0:02:01]} 28. Bxc1 {[%clk 0:00:28]}  b5 {[%clk 0:01:40]} 29. Nc3 {[%clk 0:00:26]}  Nf3+ {[%clk 0:01:41]} 30. Kh1 {[%clk 0:00:20]}  Qd7 {[%clk 0:01:38]} 31. Be3 {[%clk 0:00:18]}  a5 {[%clk 0:01:34]} 32. a4 {[%clk 0:00:18]}  b4 {[%clk 0:01:33]} 33. Nb5 {[%clk 0:00:15]}  Nd5 {[%clk 0:01:24]} 34. Bxf3 {[%clk 0:00:12]}  Qxh3+ {[%clk 0:01:23]} 35. Kg1 {[%clk 0:00:12]}  exf3 {[%clk 0:01:24]} 36. Qxd5 {[%clk 0:00:09]}  Qg2# {[%clk 0:01:24]} 0-1


[Site "https://www.chess.com"]

[Event "Titled Tuesday Blitz May 17 Late 2022"]
[White "Yurovskykh, Oleksandr"]
[Black "Bryakin, Mikhail"]
[WhiteFideId "14134020"]
[BlackFideId "4165314"]
[WhiteElo "2292"]
[BlackElo "2417"]
[Result "0-1"]
[Round "04"]
[TimeControl "180+1"]
[Date "2022.05.17"]
[WhiteClock "0:00:31"]
[BlackClock "0:01:33"]

1. d4 {[%clk 0:02:58]}  Nf6 {[%clk 0:02:55]} 2. Nf3 {[%clk 0:02:58]}  c5 {[%clk 0:02:54]} 3. c3 {[%clk 0:02:53]}  g6 {[%clk 0:02:52]} 4. Bg5 {[%clk 0:02:52]}  Bg7 {[%clk 0:02:52]} 5. Nbd2 {[%clk 0:02:52]}  O-O {[%clk 0:02:52]} 6. Bxf6 {[%clk 0:02:52]}  Bxf6 {[%clk 0:02:52]} 7. Ne4 {[%clk 0:02:52]}  Bg7 {[%clk 0:02:45]} 8. Nxc5 {[%clk 0:02:52]}  b6 {[%clk 0:02:44]} 9. Nb3 {[%clk 0:02:50]}  Bb7 {[%clk 0:02:44]} 10. e3 {[%clk 0:02:51]}  d6 {[%clk 0:02:43]} 11. Be2 {[%clk 0:02:51]}  Nd7 {[%clk 0:02:44]} 12. O-O {[%clk 0:02:51]}  Qc7 {[%clk 0:02:42]} 13. Nfd2 {[%clk 0:02:50]}  Rae8 {[%clk 0:02:40]} 14. Bf3 {[%clk 0:02:49]}  Bc8 {[%clk 0:02:39]} 15. a4 {[%clk 0:02:42]}  e5 {[%clk 0:02:36]} 16. a5 {[%clk 0:02:42]}  f5 {[%clk 0:02:35]} 17. axb6 {[%clk 0:02:40]}  axb6 {[%clk 0:02:36]} 18. Ra8 {[%clk 0:02:24]}  e4 {[%clk 0:02:34]} 19. Be2 {[%clk 0:02:24]}  Nf6 {[%clk 0:02:23]} 20. Qa1 {[%clk 0:02:10]}  f4 {[%clk 0:02:19]} 21. exf4 {[%clk 0:01:53]}  Nd5 {[%clk 0:02:01]} 22. g3 {[%clk 0:01:12]}  Nxf4 {[%clk 0:01:45]} 23. gxf4 {[%clk 0:01:09]}  d5 {[%clk 0:01:46]} 24. Qa7 {[%clk 0:00:53]}  Qxf4 {[%clk 0:01:45]} 25. Qb8 {[%clk 0:00:53]}  Be5 {[%clk 0:01:34]} 26. dxe5 {[%clk 0:00:31]}  Bh3 {[%clk 0:01:33]} 0-1


[Site "https://www.chess.com"]

[Event "Titled Tuesday Blitz May 17 Late 2022"]
[White "Abdyzhapar, Asylbek"]
[Black "Tang, Andrew"]
[WhiteFideId "13800337"]
[BlackFideId "2059630"]
[WhiteElo "2331"]
[BlackElo "2584"]
[Result "1-0"]
[Round "05"]
[TimeControl "180+1"]
[Date "2022.05.17"]
[WhiteClock "0:00:43"]
[BlackClock "0:00:02"]

1. d4 {[%clk 0:03:00]}  d5 {[%clk 0:02:57]} 2. Bf4 {[%clk 0:02:59]}  Nf6 {[%clk 0:02:53]} 3. e3 {[%clk 0:02:59]}  e6 {[%clk 0:02:53]} 4. c3 {[%clk 0:02:57]}  Bd6 {[%clk 0:02:50]} 5. Bg3 {[%clk 0:02:57]}  c5 {[%clk 0:02:50]} 6. Nd2 {[%clk 0:02:56]}  Qc7 {[%clk 0:02:49]} 7. dxc5 {[%clk 0:02:56]}  Bxg3 {[%clk 0:02:44]} 8. hxg3 {[%clk 0:02:56]}  Qxc5 {[%clk 0:02:44]} 9. Ngf3 {[%clk 0:02:56]}  b6 {[%clk 0:02:29]} 10. Bd3 {[%clk 0:02:55]}  Bb7 {[%clk 0:02:26]} 11. Qe2 {[%clk 0:02:54]}  Nc6 {[%clk 0:02:13]} 12. O-O-O {[%clk 0:02:52]}  a5 {[%clk 0:01:59]} 13. Kb1 {[%clk 0:02:51]}  a4 {[%clk 0:01:59]} 14. a3 {[%clk 0:02:50]}  h6 {[%clk 0:01:57]} 15. Rh4 {[%clk 0:02:46]}  Ke7 {[%clk 0:01:46]} 16. e4 {[%clk 0:02:44]}  g5 {[%clk 0:01:44]} 17. Rhh1 {[%clk 0:02:44]}  Rad8 {[%clk 0:01:33]} 18. e5 {[%clk 0:02:43]}  Nd7 {[%clk 0:01:33]} 19. g4 {[%clk 0:02:38]}  Ra8 {[%clk 0:01:22]} 20. g3 {[%clk 0:02:31]}  Ra5 {[%clk 0:01:21]} 21. Rhe1 {[%clk 0:01:54]}  Rha8 {[%clk 0:01:16]} 22. Qf1 {[%clk 0:01:42]}  Ba6 {[%clk 0:01:14]} 23. Bxa6 {[%clk 0:01:40]}  R8xa6 {[%clk 0:01:14]} 24. Qd3 {[%clk 0:01:39]}  Ra8 {[%clk 0:01:05]} 25. Re2 {[%clk 0:01:35]}  Rd8 {[%clk 0:00:48]} 26. Qh7 {[%clk 0:01:34]}  Rb5 {[%clk 0:00:46]} 27. Ka1 {[%clk 0:01:32]}  d4 {[%clk 0:00:40]} 28. c4 {[%clk 0:01:29]}  Ra5 {[%clk 0:00:24]} 29. Qxh6 {[%clk 0:01:28]}  Rg8 {[%clk 0:00:21]} 30. Qh7 {[%clk 0:01:16]}  Rg6 {[%clk 0:00:20]} 31. Rde1 {[%clk 0:01:09]}  b5 {[%clk 0:00:20]} 32. Ne4 {[%clk 0:01:05]}  Qb6 {[%clk 0:00:14]} 33. Nexg5 {[%clk 0:01:00]}  Nd8 {[%clk 0:00:10]} 34. Nxf7 {[%clk 0:00:58]}  Nxf7 {[%clk 0:00:09]} 35. Qxg6 {[%clk 0:00:58]}  bxc4 {[%clk 0:00:10]} 36. Ng5 {[%clk 0:00:53]}  Nfxe5 {[%clk 0:00:05]} 37. Qg7+ {[%clk 0:00:50]}  Kd6 {[%clk 0:00:04]} 38. Rxe5 {[%clk 0:00:48]}  Nxe5 {[%clk 0:00:02]} 39. Rxe5 {[%clk 0:00:48]}  c3 {[%clk 0:00:03]} 40. Rxe6+ {[%clk 0:00:44]}  Kc5 {[%clk 0:00:02]} 41. Rxb6 {[%clk 0:00:44]}  c2 {[%clk 0:00:02]} 42. Qc7+ {[%clk 0:00:43]} 1-0


[Site "https://www.chess.com"]

[Event "Titled Tuesday Blitz May 17 Late 2022"]
[White "Adewumi, Tanitoluwa"]
[Black "Popilski, Gil"]
[WhiteFideId "30966396"]
[BlackFideId "2809060"]
[WhiteElo "2509"]
[BlackElo "2537"]
[Result "0-1"]
[Round "05"]
[TimeControl "180+1"]
[Date "2022.05.17"]
[WhiteClock "0:00:05"]
[BlackClock "0:00:38"]

1. d4 {[%clk 0:03:00]}  d5 {[%clk 0:02:57]} 2. Bf4 {[%clk 0:02:55]}  c5 {[%clk 0:02:56]} 3. e3 {[%clk 0:02:54]}  Nc6 {[%clk 0:02:56]} 4. Nc3 {[%clk 0:02:53]}  cxd4 {[%clk 0:02:55]} 5. exd4 {[%clk 0:02:52]}  a6 {[%clk 0:02:55]} 6. Nf3 {[%clk 0:02:52]}  Bg4 {[%clk 0:02:54]} 7. Be2 {[%clk 0:02:52]}  e6 {[%clk 0:02:53]} 8. O-O {[%clk 0:02:50]}  Bd6 {[%clk 0:02:52]} 9. Bxd6 {[%clk 0:02:29]}  Qxd6 {[%clk 0:02:53]} 10. Ne5 {[%clk 0:02:29]}  Bxe2 {[%clk 0:02:51]} 11. Qxe2 {[%clk 0:02:18]}  Nxd4 {[%clk 0:02:42]} 12. Qg4 {[%clk 0:01:43]}  Qxe5 {[%clk 0:02:38]} 13. Rae1 {[%clk 0:01:43]}  Nh6 {[%clk 0:02:23]} 14. Qd1 {[%clk 0:01:32]}  Qf4 {[%clk 0:01:44]} 15. Nxd5 {[%clk 0:01:26]}  Nf3+ {[%clk 0:01:34]} 16. Qxf3 {[%clk 0:01:01]}  Qxf3 {[%clk 0:01:33]} 17. gxf3 {[%clk 0:01:01]}  Rc8 {[%clk 0:01:32]} 18. c3 {[%clk 0:00:49]}  Nf5 {[%clk 0:01:25]} 19. Re5 {[%clk 0:00:42]}  Nh4 {[%clk 0:01:20]} 20. Re3 {[%clk 0:00:24]}  Rd8 {[%clk 0:01:08]} 21. Nb6 {[%clk 0:00:15]}  h5 {[%clk 0:01:02]} 22. h3 {[%clk 0:00:12]}  Rh6 {[%clk 0:01:01]} 23. Kh2 {[%clk 0:00:12]}  Rf6 {[%clk 0:00:58]} 24. f4 {[%clk 0:00:09]}  Rxf4 {[%clk 0:00:56]} 25. Kg3 {[%clk 0:00:08]}  g5 {[%clk 0:00:56]} 26. Re5 {[%clk 0:00:05]}  Rd3+ {[%clk 0:00:38]} 27. Kh2 {[%clk 0:00:05]}  Nf3+ {[%clk 0:00:38]} 0-1


[Site "https://www.chess.com"]

[Event "Titled Tuesday Blitz May 17 Late 2022"]
[White "Andreikin, Dmitry"]
[Black "Tristan, Leonardo"]
[WhiteFideId "4158814"]
[BlackFideId "113816"]
[WhiteElo "2736"]
[BlackElo "2404"]
[Result "1-0"]
[Round "05"]
[TimeControl "180+1"]
[Date "2022.05.17"]
[WhiteClock "0:01:27"]
[BlackClock "0:00:14"]

1. d4 {[%clk 0:03:00]}  d5 {[%clk 0:03:00]} 2. c4 {[%clk 0:03:01]}  e6 {[%clk 0:03:00]} 3. Nc3 {[%clk 0:03:00]}  a6 {[%clk 0:03:01]} 4. cxd5 {[%clk 0:02:57]}  exd5 {[%clk 0:03:01]} 5. Nf3 {[%clk 0:02:57]}  Nf6 {[%clk 0:03:01]} 6. Bg5 {[%clk 0:02:56]}  Be6 {[%clk 0:03:00]} 7. Bxf6 {[%clk 0:02:54]}  Qxf6 {[%clk 0:03:00]} 8. Qb3 {[%clk 0:02:54]}  Ra7 {[%clk 0:03:01]} 9. e3 {[%clk 0:02:54]}  Qd8 {[%clk 0:02:54]} 10. Bd3 {[%clk 0:02:52]}  Nd7 {[%clk 0:02:49]} 11. O-O-O {[%clk 0:02:51]}  c6 {[%clk 0:02:45]} 12. h4 {[%clk 0:02:49]}  h6 {[%clk 0:02:36]} 13. Ne2 {[%clk 0:02:49]}  Bd6 {[%clk 0:02:15]} 14. Nf4 {[%clk 0:02:48]}  Bg4 {[%clk 0:02:16]} 15. Ne2 {[%clk 0:02:39]}  O-O {[%clk 0:02:13]} 16. Kb1 {[%clk 0:02:36]}  Re8 {[%clk 0:02:11]} 17. Qc2 {[%clk 0:02:33]}  Nf6 {[%clk 0:02:06]} 18. Nc3 {[%clk 0:02:30]}  a5 {[%clk 0:02:01]} 19. Bf5 {[%clk 0:02:29]}  Bxf5 {[%clk 0:01:54]} 20. Qxf5 {[%clk 0:02:29]}  Qd7 {[%clk 0:01:55]} 21. Qxd7 {[%clk 0:02:28]}  Nxd7 {[%clk 0:01:54]} 22. g4 {[%clk 0:02:27]}  a4 {[%clk 0:01:45]} 23. a3 {[%clk 0:02:26]}  b5 {[%clk 0:01:43]} 24. Na2 {[%clk 0:02:23]}  Nb6 {[%clk 0:01:41]} 25. Ne1 {[%clk 0:02:22]}  Re4 {[%clk 0:01:31]} 26. Rg1 {[%clk 0:02:22]}  h5 {[%clk 0:01:29]} 27. gxh5 {[%clk 0:02:19]}  Rxh4 {[%clk 0:01:29]} 28. Nd3 {[%clk 0:02:18]}  Rxh5 {[%clk 0:01:25]} 29. Nab4 {[%clk 0:02:19]}  Bxb4 {[%clk 0:01:21]} 30. Nxb4 {[%clk 0:02:19]}  Rc7 {[%clk 0:01:20]} 31. Rh1 {[%clk 0:02:17]}  Rxh1 {[%clk 0:01:19]} 32. Rxh1 {[%clk 0:02:18]}  Nc4 {[%clk 0:01:19]} 33. Kc2 {[%clk 0:02:18]}  f6 {[%clk 0:01:18]} 34. Kc3 {[%clk 0:02:16]}  Kf7 {[%clk 0:01:18]} 35. Rh8 {[%clk 0:02:15]}  Nd6 {[%clk 0:01:14]} 36. Nd3 {[%clk 0:02:14]}  Rc8 {[%clk 0:01:06]} 37. Rh1 {[%clk 0:02:12]}  g5 {[%clk 0:00:59]} 38. Kb4 {[%clk 0:02:12]}  Kg6 {[%clk 0:00:59]} 39. Kc5 {[%clk 0:02:10]}  Ne4+ {[%clk 0:00:58]} 40. Kb6 {[%clk 0:02:10]}  g4 {[%clk 0:00:59]} 41. Rc1 {[%clk 0:02:05]}  Kf5 {[%clk 0:00:52]} 42. Rc2 {[%clk 0:01:59]}  Rb8+ {[%clk 0:00:49]} 43. Kc7 {[%clk 0:01:55]}  Re8 {[%clk 0:00:45]} 44. Kd7 {[%clk 0:01:45]}  Rg8 {[%clk 0:00:38]} 45. Rxc6 {[%clk 0:01:42]}  Nxf2 {[%clk 0:00:36]} 46. Nxf2 {[%clk 0:01:42]}  g3 {[%clk 0:00:36]} 47. Nh3 {[%clk 0:01:40]}  g2 {[%clk 0:00:22]} 48. Ng1 {[%clk 0:01:36]}  Rg7+ {[%clk 0:00:19]} 49. Kd6 {[%clk 0:01:32]}  Ke4 {[%clk 0:00:19]} 50. Kc5 {[%clk 0:01:32]}  f5 {[%clk 0:00:17]} 51. Re6+ {[%clk 0:01:32]}  Kd3 {[%clk 0:00:18]} 52. Kxd5 {[%clk 0:01:32]}  Kd2 {[%clk 0:00:16]} 53. Ke5 {[%clk 0:01:29]}  Kxe3 {[%clk 0:00:16]} 54. Kf6+ {[%clk 0:01:28]}  Kf2 {[%clk 0:00:17]} 55. Nh3+ {[%clk 0:01:27]}  Kg3 {[%clk 0:00:16]} 56. Re3+ {[%clk 0:01:27]}  Kh2 {[%clk 0:00:14]} 57. Kxg7 {[%clk 0:01:27]}  f4 {[%clk 0:00:14]} 58. Rf3 {[%clk 0:01:27]} 1-0


[Site "https://www.chess.com"]